bitfinex/quotes_SOLUSD_20240624
["timestamp","ask_amount","ask_price","bid_price","bid_amount"]
[1719249704799,30.65,128.34,128.22,20.0]
[1719249705202,10.13119423,128.39,128.22,74.7186]
[1719249705653,2.34239423,128.39,128.23,0.34]
[1719249705927,7.7897,128.38,128.23,0.34]
[1719249706112,71.3,128.4,128.23,0.34]
[1719249706316,71.3,128.4,128.22,20.0]
[1719249706317,30.65,128.35,128.22,20.0]
[1719249706522,30.65,128.31,128.21,6.3724]
[1719249707225,38.4416,128.35,128.21,6.3724]
[1719249707521,30.65,128.35,128.21,6.3724]
[1719249707819,7.7921,128.34,128.22,0.34]
[1719249707997,30.65,128.35,128.21,6.3724]
[1719249708212,30.65,128.31,128.22,0.17]
[1719249708636,38.4436,128.31,128.22,0.17]
[1719249708834,30.65,128.31,128.22,20.17]
[1719249709138,30.65,128.35,128.22,20.17]
[1719249709303,0.17,128.34,128.22,20.17]
[1719249709506,38.4412,128.35,128.22,20.17]
[1719249709787,30.65,128.35,128.22,20.17]
[1719249710027,54.04,128.35,128.23,0.17]
[1719249710212,54.04,128.35,128.21,6.3724]
[1719249710213,0.17,128.34,128.21,6.3724]
[1719249710434,0.17,128.34,128.2,16.1899]
[1719249710435,30.65,128.24,128.18,20.17]
[1719249710633,7.7989,128.23,128.18,20.17]
[1719249710812,19.4909,128.27,128.1,6.529]
[1719249710813,30.65,128.2,128.1,6.529]
[1719249711014,30.65,128.2,128.07,15.2221]
[1719249711015,0.17,128.19,128.07,15.2221]
[1719249711199,30.65,128.22,128.07,15.2221]
[1719249711415,10.0,128.31,128.1,19.5155]
[1719249711776,16.0642,128.34,128.07,15.2221]
[1719249711777,30.65,128.19,128.07,15.2221]
[1719249712249,0.17,128.18,128.07,15.2221]
[1719249712403,30.65,128.15,128.07,15.2221]
[1719249715431,30.65,128.15,128.08,20.0]
[1719249715629,0.17,128.14,128.08,20.0]
[1719249715850,0.17,128.14,128.06,20.0]
[1719249715851,0.34,128.14,128.06,20.0]
[1719249716183,0.34,128.14,128.02,20.0]
[1719249716838,8.1439,128.14,128.02,20.0]
[1719249717026,8.1439,128.14,128.01,15.6305]
[1719249717244,0.34,128.14,128.01,15.6305]
[1719249717545,30.65,128.1,128.01,15.6305]
[1719249718610,0.34,128.09,127.94,15.8325]
[1719249718811,30.65,128.06,127.95,20.0]
[1719249719019,30.65,128.06,127.92,15.6305]
[1719249719020,30.65,128.02,127.92,15.6305]
[1719249719271,0.17,128.01,127.84,6.5215]
[1719249719452,0.34,128.01,127.87,7.8199]
[1719249719746,30.65,128.02,127.87,46.92]
[1719249719958,0.34,128.01,127.87,54.7403]
[1719249720120,30.65,128.02,127.88,7.8197]
[1719249720313,0.17,128.03,127.88,19.5488]
[1719249720514,0.34,128.03,127.87,46.92]
[1719249720762,0.34,128.03,127.86,15.6305]
[1719249720763,30.65,127.99,127.86,15.6305]
[1719249720947,30.65,127.99,127.84,396.9215]
[1719249721246,0.34,127.98,127.84,396.9215]
[1719249721737,0.34,127.98,127.85,7.8212]
[1719249721912,30.65,128.0,127.86,19.552]
[1719249722114,7.815,127.96,127.84,396.9215]
[1719249722344,30.65,127.97,127.84,396.9215]
[1719249723114,0.17,127.96,127.84,396.9215]
[1719249723330,7.8156,127.95,127.85,20.0]
[1719249723519,7.8156,127.95,127.83,15.8325]
[1719249723520,7.816,127.95,127.83,15.8325]
[1719249723813,7.8176,127.92,127.83,15.8325]
[1719249724025,0.34,127.94,127.83,15.8325]
[1719249724343,30.65,127.97,127.83,15.8325]
[1719249724522,30.65,127.98,127.83,15.8325]
[1719249724745,0.17,127.97,127.83,15.8325]
[1719249724937,8.16232934,128.03,127.84,20.17]
[1719249725148,8.16232934,128.03,127.91,7.8178]
[1719249725327,30.65,128.07,127.93,7.8166]
[1719249725530,8.15956608,128.08,127.94,20.34]
[1719249725736,8.15956608,128.08,127.92,20.34]
[1719249725923,7.8107,128.03,127.92,20.34]
[1719249726125,15.96726608,128.08,127.92,0.34]
[1719249726330,8.15956608,128.08,127.92,0.34]
[1719249726642,7.8111,128.03,127.92,0.34]
[1719249726837,0.17,128.02,127.92,0.34]
[1719249727044,30.65,128.04,127.92,0.34]
[1719249727348,8.15956608,128.08,127.92,0.34]
[1719249727526,38.80956608,128.08,127.93,19.5414]
[1719249727727,38.80956608,128.08,127.94,0.34]
[1719249727923,19.5212,128.07,127.92,0.17]
[1719249728126,30.65,128.04,127.91,20.0]
[1719249728329,61.3,128.04,127.91,20.0]
[1719249728550,7.8135,127.99,127.87,20.0]
[1719249728752,30.65,128.0,127.86,259.1]
[1719249729124,0.34,127.99,127.86,259.1]
[1719249729438,0.17,127.99,127.86,259.1]
[1719249729639,30.65,128.04,127.9,7.8184]
[1719249729827,30.65,128.04,127.86,259.1]
[1719249729828,30.65,128.04,127.91,0.34]
[1719249730033,30.65,128.04,127.9,0.34]
[1719249730439,38.4601,128.04,127.91,0.17]
[1719249730643,30.65,128.04,127.89,20.34]
[1719249731030,30.65,128.06,127.89,0.34]
[1719249731161,7.8141,127.98,127.9,20.0]
[1719249731364,7.8141,127.98,127.87,20.0]
[1719249731656,54.04,128.02,127.87,20.0]
[1719249731657,19.5301,128.01,127.87,20.0]
[1719249731840,7.8137,127.98,127.87,20.0]
[1719249732046,7.8165,127.94,127.85,390.4]
[1719249732276,7.8168,127.93,127.8,31.277329]
[1719249732464,0.17,127.97,127.8,31.277329]
[1719249732678,39.0468,128.06,127.8,31.277329]
[1719249732679,21.08111091,128.08,127.91,7.8175]
[1719249732863,8.15956608,128.08,127.93,54.7362]
[1719249733101,8.15956608,128.08,127.94,66.4593]
[1719249733244,30.65,128.16,127.96,46.92]
[1719249733429,30.65,128.16,127.97,19.5356]
[1719249733639,62.19470658,128.16,127.98,0.34]
[1719249733843,38.80470658,128.16,127.99,0.17]
[1719249734175,7.8053,128.12,127.97,67.26]
[1719249734458,38.80470658,128.16,127.97,86.7956]
[1719249734654,38.80470658,128.16,127.99,54.733]
[1719249734966,38.80470658,128.16,128.0,36.0567]
[1719249735227,88.96190658,128.16,128.01,0.17]
[1719249735333,88.96190658,128.16,127.97,20.17]
[1719249735334,19.5108,128.14,127.97,20.0]
[1719249735550,30.65,128.09,127.97,20.0]
[1719249735944,38.80470658,128.16,127.96,20.0]
[1719249736144,2.34239423,128.15,127.96,410.4]
[1719249736652,30.65,128.22,128.05,7.8093]
[1719249736865,30.65,128.22,128.06,35.9349]
[1719249737062,6.4196,128.23,128.07,7.978]
[1719249737233,30.65,128.28,128.09,53.3465]
[1719249737433,15.94475578,128.26,128.1,20.34]
[1719249737635,8.14815578,128.26,128.1,67.26]
[1719249737837,8.14815578,128.26,128.12,7.8051]
[1719249738136,30.65,128.28,128.13,20.34]
[1719249738475,7.7955,128.28,128.13,20.34]
[1719249738648,7.7955,128.28,128.13,0.34]
[1719249738839,8.14589881,128.29,128.13,0.34]
[1719249739037,8.14589881,128.29,128.14,46.92]
[1719249739347,8.14589881,128.29,128.15,20.34]
[1719249739732,8.14589881,128.29,128.15,0.34]
[1719249739944,30.65,128.34,128.16,16.6184]
[1719249740233,15.93489028,128.34,128.17,86.764]
[1719249740489,6.0003,128.36,128.17,94.566]
[1719249740490,7.7912,128.35,128.17,94.566]
[1719249740642,36.6503,128.36,128.17,94.566]
[1719249740840,44.79213104,128.36,128.17,67.26]
[1719249741169,7.7942,128.31,128.17,20.34]
[1719249741459,30.65,128.32,128.17,86.7642]
[1719249741789,30.65,128.32,128.17,20.34]
[1719249742062,38.4431,128.32,128.17,20.34]
[1719249742276,7.7942,128.3,128.17,20.34]
[1719249742559,30.65,128.32,128.17,20.34]
[1719249742741,7.7943,128.3,128.17,20.34]
[1719249742947,7.7937,128.31,128.17,20.34]
[1719249743159,30.65,128.32,128.17,20.34]
[1719249743541,30.65,128.32,128.17,67.26]
[1719249743741,30.65,128.32,128.17,75.0616]
[1719249744076,7.8006,128.2,128.09,6.4265]
[1719249744277,7.8006,128.2,128.05,15.7481]
[1719249744278,50.1474,128.23,128.05,15.7481]
[1719249744478,6.1173,128.24,128.05,15.7481]
[1719249744760,38.4516,128.18,128.05,15.7481]
[1719249744960,30.65,128.18,128.05,15.7481]
[1719249745265,0.34,128.17,128.05,15.7481]
[1719249745467,30.99,128.17,127.98,21.8188]
[1719249745682,54.04,128.13,127.98,21.8188]
[1719249745849,0.34,128.12,127.98,21.8188]
[1719249746053,0.34,128.12,127.98,15.7481]
[1719249746054,30.65,128.09,127.98,15.7481]
[1719249746265,0.34,128.08,127.98,15.7481]
[1719249746447,19.5069,128.16,127.98,15.7481]
[1719249746649,0.17,128.15,127.98,62.6681]
[1719249746860,30.65,128.21,128.05,7.8089]
[1719249747160,30.65,128.21,128.0,7.8124]
[1719249747374,30.65,128.21,128.01,0.17]
[1719249747685,30.65,128.21,128.06,7.8086]
[1719249747885,38.4459,128.28,128.11,6.5197]
[1719249748056,30.65,128.28,128.13,7.8044]
[1719249748252,7.7954,128.29,128.14,20.34]
[1719249748575,7.7979,128.24,128.11,6.5197]
[1719249748761,7.7979,128.24,128.12,20.34]
[1719249749146,30.65,128.26,128.12,20.34]
[1719249749394,30.65,128.26,128.12,20.17]
[1719249749564,30.65,128.26,128.11,6.5197]
[1719249749880,7.7973,128.25,128.12,0.17]
[1719249750057,2.34235138,128.25,128.12,0.17]
[1719249750257,30.65,128.28,128.12,7.975]
[1719249750469,30.65,128.28,128.14,46.92]
[1719249750812,30.65,128.34,128.19,15.428]
[1719249750956,30.65,128.34,128.2,20.34]
[1719249751166,8.14224111,128.36,128.21,7.7991]
[1719249751475,8.14224111,128.36,128.2,39.8403]
[1719249751476,30.65,128.35,128.22,26.1656]
[1719249751687,30.65,128.35,128.23,0.34]
[1719249751847,8.14224111,128.36,128.23,0.34]
[1719249752671,30.65,128.39,128.24,46.92]
[1719249752877,52.8579,128.43,128.25,20.34]
[1719249753118,38.7873664,128.42,128.27,7.796]
[1719249753288,7.7857,128.44,128.28,0.34]
[1719249753467,30.65,128.46,128.28,20.34]
[1719249753661,8.13713374,128.43,128.28,20.34]
[1719249753982,7.7868,128.43,128.28,20.34]
[1719249754290,8.13692044,128.44,128.29,63.357]
[1719249754487,30.65,128.47,128.32,7.7928]
[1719249754696,38.4313,128.52,128.33,73.3745]
[1719249754865,38.4313,128.52,128.34,0.17]
[1719249754866,7.7815,128.51,128.34,0.17]
[1719249755069,7.7822,128.5,128.34,0.17]
[1719249755264,38.7823675,128.52,128.35,46.92]
[1719249755576,30.65,128.52,128.36,20.34]
[1719249755796,38.78196209,128.52,128.36,20.17]
[1719249755954,38.78196209,128.52,128.37,0.17]
[1719249755955,23.39,128.51,128.37,0.17]
[1719249756161,7.7833,128.48,128.37,0.17]
[1719249756471,7.7839,128.47,128.36,0.17]
[1719249756669,30.65,128.46,128.29,16.437]
[1719249756861,30.65,128.4,128.29,16.437]
[1719249757986,30.65,128.36,128.26,6.5883]
[1719249758193,30.65,128.36,128.2,16.5281]
[1719249758194,23.39,128.32,128.2,16.5281]
[1719249758494,0.34,128.31,128.2,16.5281]
[1719249758985,0.17,128.31,128.2,16.5281]
[1719249759181,30.65,128.32,128.2,16.5281]
[1719249759681,30.65,128.4,128.21,2.34342648]
[1719249759878,16.5469,128.43,128.21,2.34342648]
[1719249759879,30.82,128.39,128.21,2.34342648]
[1719249760278,30.65,128.35,128.21,2.34342648]
[1719249760681,30.82,128.39,128.22,0.17]
[1719249760860,7.791,128.36,128.22,0.17]
[1719249761072,30.82,128.39,128.22,0.17]
[1719249761280,30.65,128.4,128.24,7.7977]
[1719249761530,30.65,128.4,128.25,20.17]
[1719249761665,30.65,128.4,128.26,0.34]
[1719249761864,30.65,128.4,128.27,0.17]
[1719249762064,7.7858,128.44,128.27,7.7956]
[1719249762266,7.7864,128.43,128.28,20.34]
[1719249762465,30.65,128.42,128.29,2.34196515]
[1719249762783,8.13196209,128.52,128.36,46.92]
[1719249762971,8.13196209,128.52,128.31,22.7206]
[1719249762972,30.65,128.54,128.37,28.1299]
[1719249763172,7.7796,128.55,128.37,28.1299]
[1719249763173,7.779,128.55,128.37,20.34]
[1719249763383,7.78,128.54,128.37,20.34]
[1719249763612,7.7797,128.54,128.37,28.1298]
[1719249763781,7.7803,128.53,128.38,31.145147]
[1719249763973,8.13034719,128.56,128.39,22.68014105]
[1719249764166,7.7803,128.53,128.4,2.33995879]
[1719249764371,7.7797,128.54,128.41,0.34]
[1719249764590,31.146524,128.62,128.41,0.34]
[1719249764591,30.65,128.66,128.43,77.57]
[1719249764791,7.773,128.65,128.47,7.7838]
[1719249764975,7.7756,128.61,128.48,20.34]
[1719249765175,7.7756,128.61,128.44,78.98135918]
[1719249765176,23.39,128.64,128.49,0.17]
[1719249765385,50.0823,128.66,128.44,67.26]
[1719249765386,7.7749,128.62,128.44,67.26]
[1719249765577,7.7749,128.62,128.45,7.7848]
[1719249765889,7.7749,128.62,128.46,20.34]
[1719249766467,7.7743,128.63,128.47,2.33868381]
[1719249766751,7.775,128.62,128.48,0.34]
[1719249766896,23.39,128.6,128.47,2.33868381]
[1719249767280,30.65,128.64,128.36,19.4756]
[1719249767281,7.7798,128.54,128.36,19.4756]
[1719249767581,10.0,128.63,128.36,66.3956]
[1719249767809,30.65,128.58,128.42,24.06909437]
[1719249767977,0.17,128.57,128.42,24.06909437]
[1719249768198,0.17,128.57,128.42,21.7295]
[1719249768396,7.7805,128.53,128.42,21.7295]
[1719249768692,7.9513,128.52,128.42,21.7295]
[1719249769007,7.7833,128.48,128.36,31.149958]
[1719249769183,0.34,128.47,128.35,6.0822]
[1719249769488,0.34,128.47,128.35,8.42307035]
[1719249769687,0.17,128.47,128.35,16.20517035]
[1719249769896,23.39,128.46,128.35,16.20517035]
[1719249770101,0.34,128.45,128.35,8.42307035]
[1719249770614,23.39,128.44,128.35,8.42307035]
[1719249770774,23.39,128.4,128.35,2.34087035]
[1719249770976,23.39,128.36,128.35,2.34087035]
[1719249771190,23.39,128.36,128.27,6.243]
[1719249771191,23.56,128.36,128.27,6.243]
[1719249771393,0.34,128.35,128.27,6.243]
[1719249771768,23.39,128.34,128.26,16.1892]
[1719249771983,23.39,128.32,128.19,21.7366]
[1719249772274,8.1326,128.33,128.19,21.7366]
[1719249772275,31.1844,128.3,128.19,21.7366]
[1719249772586,0.34,128.31,128.19,21.7366]
[1719249773095,0.17,128.31,128.19,21.7366]
[1719249773291,31.1851,128.29,128.19,21.7366]
[1719249773473,0.34,128.28,128.19,21.7366]
[1719249774278,23.73,128.28,128.19,15.5733]
[1719249774504,31.186,128.27,128.19,15.5733]
[1719249774671,0.34,128.26,128.13,30.65]
[1719249774999,0.17,128.25,128.12,6.0431]
[1719249775210,30.65,128.25,128.12,6.0431]
[1719249775391,30.65,128.21,128.09,30.65]
[1719249775601,30.65,128.16,128.09,30.65]
[1719249775793,23.39,128.15,128.05,6.1771]
[1719249776004,30.65,128.22,128.05,6.1771]
[1719249776005,0.17,128.25,128.05,6.1771]
[1719249776332,7.8046,128.13,128.05,6.1771]
[1719249776502,7.804,128.14,128.05,6.1771]
[1719249776696,0.34,128.13,127.99,15.0237]
[1719249777395,7.8009,128.19,128.01,7.8117]
[1719249777599,30.65,128.2,127.99,45.6737]
[1719249777782,7.8027,128.16,127.99,45.6737]
[1719249778108,7.804,128.14,127.99,15.0237]
[1719249778350,0.17,128.13,127.99,15.0237]
[1719249779001,0.34,128.13,127.99,15.0237]
[1719249779498,0.34,128.14,128.0,0.17]
[1719249779705,0.17,128.13,128.0,8.1524]
[1719249780007,0.17,128.14,128.02,7.811]
[1719249780206,61.3,128.22,128.03,20.34]
[1719249780445,30.65,128.18,128.03,0.34]
[1719249780578,30.65,128.18,128.01,20.0]
[1719249780904,30.65,128.18,127.99,15.0237]
[1719249781086,30.65,128.18,128.01,27.3414]
[1719249781410,15.9517062,128.24,128.06,7.8082]
[1719249781705,15.9517062,128.24,127.99,15.0237]
[1719249781706,30.65,128.21,127.99,15.0237]
[1719249781876,30.65,128.21,128.0,0.17]
[1719249782075,30.65,128.21,128.01,19.5293]
[1719249782282,38.4502,128.21,128.04,7.8095]
[1719249782593,38.4502,128.21,128.05,28.1494]
[1719249782594,30.65,128.21,128.05,28.1494]
[1719249782786,8.1538062,128.24,128.05,39.8625]
[1719249783105,38.4458,128.28,128.1,14.04]
[1719249783290,38.79748876,128.28,128.11,20.17]
[1719249783484,38.79748876,128.28,128.13,15.5114]
[1719249783824,30.65,128.3,128.14,20.0]
[1719249783981,7.8006,128.2,128.11,0.17]
[1719249784187,54.04,128.22,128.05,15.5114]
[1719249784388,30.65,128.18,128.06,20.0]
[1719249784656,38.4519,128.18,128.05,15.5114]
[1719249784781,30.65,128.18,128.05,15.5114]
[1719249785007,7.7979,128.24,128.05,15.5114]
[1719249785312,10.0,128.29,128.07,19.5199]
[1719249785606,10.0,128.29,128.06,2.3461714]
[1719249785607,30.65,128.26,128.09,19.5165]
[1719249785920,30.65,128.26,128.07,46.92]
[1719249785921,7.7986,128.23,128.07,46.92]
[1719249786222,23.39,128.25,128.08,0.17]
[1719249786395,23.39,128.25,128.07,0.34]
[1719249786614,38.9794,128.28,128.06,22.3461714]
[1719249786615,23.56,128.24,128.06,22.3461714]
[1719249786790,30.65,128.17,128.06,2.3461714]
[1719249786998,0.17,128.16,128.05,15.5114]
[1719249787304,0.34,128.16,128.05,15.5114]
[1719249787697,7.8058,128.11,128.03,6.2815]
[1719249787892,0.17,128.1,127.98,16.5223]
[1719249788110,7.8053,128.12,127.98,16.5223]
[1719249788291,0.34,128.11,127.98,16.5223]
[1719249788699,30.65,128.17,127.98,16.5223]
[1719249788908,45.17,128.16,127.99,2.34745456]
[1719249789116,7.8051,128.13,127.99,2.34745456]
[1719249789293,0.17,128.12,127.99,2.34745456]
[1719249789693,42.9055,128.11,127.99,2.34745456]
[1719249789895,0.34,128.1,127.99,2.34745456]
[1719249790184,0.34,128.1,127.98,16.5223]
[1719249790185,0.17,128.09,127.98,16.5223]
[1719249790385,0.17,128.11,127.98,16.5223]
[1719249790585,19.5015,128.2,127.98,36.056]
[1719249790800,30.65,128.18,127.98,16.5223]
[1719249790999,7.804,128.14,127.98,16.5223]
[1719249791202,73.5447,128.18,127.98,16.5223]
[1719249791522,30.65,128.14,127.98,16.5223]
[1719249791702,7.807,128.09,127.98,16.5223]
[1719249791893,23.39,128.13,127.98,16.5223]
[1719249792099,64.514,128.12,127.98,16.5223]
[1719249792393,0.17,128.11,127.98,16.5223]
[1719249792585,7.8059,128.11,127.98,16.5223]
[1719249792784,30.65,128.14,127.98,16.5223]
[1719249792994,38.4533,128.16,127.99,27.813]
[1719249793247,30.65,128.16,127.99,66.92]
[1719249793389,38.4532,128.16,127.99,20.0]
[1719249793587,7.801,128.19,128.0,66.4499]
[1719249793785,19.5016,128.2,128.01,20.0]
[1719249794027,7.8023,128.17,128.02,0.17]
[1719249794495,15.95415074,128.19,128.02,7.981]
[1719249794699,7.8015,128.18,128.03,20.17]
[1719249794896,15.95415074,128.19,128.04,0.34]
[1719249795092,30.65,128.22,128.05,6.5746]
[1719249795336,23.39,128.21,128.06,20.17]
[1719249795520,8.15132133,128.21,128.07,0.17]
[1719249795729,7.8017,128.18,128.07,0.17]
[1719249795927,7.8004,128.2,128.07,0.17]
[1719249796222,19.4997,128.21,128.06,20.17]
[1719249796523,7.8046,128.13,128.05,6.4046]
[1719249796707,23.39,128.17,128.05,6.4046]
[1719249796898,7.8047,128.13,128.05,6.4046]
[1719249797094,31.3656,128.12,128.05,6.4046]
[1719249797310,0.17,128.11,128.05,6.4046]
[1719249797637,0.34,128.12,128.05,6.4046]
[1719249797814,38.4517,128.18,128.05,6.4046]
[1719249798145,0.17,128.17,128.05,6.4046]
[1719249798658,7.8058,128.11,128.05,6.4046]
[1719249798871,23.39,128.14,128.05,6.4046]
[1719249798872,7.9768,128.1,128.05,6.4046]
[1719249799021,7.9768,128.1,127.99,6.2916]
[1719249799022,0.17,128.1,127.99,6.2916]
[1719249799346,23.56,128.1,127.99,6.2916]
[1719249799726,0.17,128.09,127.99,6.2916]
[1719249800131,23.73,128.1,127.99,6.2916]
[1719249800629,31.1983,128.07,127.99,6.2916]
[1719249800831,0.34,128.06,127.99,6.2916]
[1719249801146,0.17,128.05,127.99,6.2916]
[1719249801685,0.17,128.06,127.99,6.2916]
[1719249801821,19.5107,128.14,127.99,6.2916]
[1719249802147,7.8071,128.09,127.99,6.2916]
[1719249802360,45.34,128.13,127.99,6.2916]
[1719249802361,0.34,128.08,127.99,6.2916]
[1719249802656,38.4552,128.12,128.0,0.17]
[1719249802833,30.65,128.16,128.0,20.34]
[1719249803158,23.39,128.12,127.99,6.2916]
[1719249803776,7.8076,128.08,127.99,6.2916]
[1719249803939,0.17,128.07,127.99,6.2916]
[1719249804443,19.5121,128.13,127.99,6.2916]
[1719249804649,61.3,128.16,127.99,6.2916]
[1719249804821,50.1579,128.16,127.99,6.2916]
[1719249805151,7.8059,128.11,127.99,6.2916]
[1719249805446,50.1579,128.16,127.99,6.2916]
[1719249805447,39.0218,128.14,127.99,6.2916]
[1719249805650,30.65,128.16,128.0,0.34]
[1719249805651,7.8053,128.12,128.0,0.34]
[1719249808133,61.8432,128.16,128.01,0.17]
[1719249808343,23.39,128.15,128.01,0.17]
[1719249808550,19.5048,128.18,128.01,0.17]
[1719249808551,23.39,128.14,128.01,0.17]
[1719249808760,8.12046535,128.17,128.01,47.09]
[1719249808932,8.12046535,128.17,128.05,22.9882]
[1719249809136,7.801,128.19,128.06,20.34]
[1719249809637,38.76933598,128.22,128.06,20.34]
[1719249809638,46.56893598,128.22,128.06,20.34]
[1719249810035,7.8003,128.2,128.06,20.34]
[1719249810244,7.801,128.19,128.06,20.34]
[1719249810437,7.8022,128.17,128.06,20.34]
[1719249810642,7.8,128.21,128.06,20.34]
[1719249810950,7.8007,128.2,128.06,20.34]
[1719249811338,38.76933598,128.22,128.06,20.34]
[1719249812144,38.76933598,128.22,128.05,22.9882]
[1719249812460,30.65,128.18,128.05,22.9882]
[1719249812756,7.7999,128.21,128.06,20.0]
[1719249812958,38.76933598,128.22,128.08,7.8076]
[1719249813261,7.801,128.19,128.09,20.0]
[1719249813560,7.8047,128.13,128.05,22.9882]
[1719249814064,48.76933598,128.22,128.05,22.9882]
[1719249814065,7.8067,128.1,128.05,22.9882]
[1719249814255,0.17,128.09,128.05,22.9882]
[1719249814468,0.34,128.1,128.05,22.9882]
[1719249814834,31.1952,128.12,128.05,22.9882]
[1719249814835,0.17,128.09,128.05,22.9882]
[1719249815079,23.39,128.09,127.99,22.1313]
[1719249815252,7.8083,128.07,127.99,22.1313]
[1719249815568,0.17,128.06,127.99,22.1313]
[1719249815743,0.34,128.08,127.99,22.1313]
[1719249815933,30.65,128.11,127.99,22.1313]
[1719249816132,19.5086,128.15,127.99,22.1313]
[1719249816133,0.17,128.1,127.99,22.1313]
[1719249816333,0.17,128.08,127.99,22.1313]
[1719249816738,7.8086,128.07,127.99,22.1313]
[1719249816954,23.56,128.1,127.99,22.1313]
[1719249816955,0.34,128.06,127.99,22.1313]
[1719249817157,0.17,128.06,127.99,22.1313]
[1719249817962,0.34,128.07,127.99,22.1313]
[1719249818469,0.17,128.06,127.99,22.1313]
[1719249818759,0.34,128.08,127.99,22.1313]
[1719249819146,23.39,128.13,127.99,22.1313]
[1719249819454,31.1953,128.12,128.0,20.34]
[1719249819654,58.274645,128.16,128.0,20.34]
[1719249819870,19.5104,128.14,128.0,20.34]
[1719249820163,7.8069,128.1,128.0,20.0]
[1719249820458,19.5104,128.14,128.0,20.0]
[1719249820634,38.767345,128.16,128.0,20.0]
[1719249821039,7.8037,128.15,128.0,20.0]
[1719249821336,23.39,128.13,128.0,20.0]
[1719249821549,23.39,128.12,128.0,20.0]
[1719249821741,7.8074,128.09,127.99,22.1313]
[1719249821959,23.39,128.12,127.99,22.1313]
[1719249822154,23.39,128.1,127.99,22.1313]
[1719249822337,0.17,128.09,127.99,22.1313]
[1719249822671,30.65,128.14,127.99,22.1313]
[1719249822838,7.8054,128.12,128.0,20.0]
[1719249823043,0.34,128.11,128.0,20.0]
[1719249824943,0.34,128.11,128.01,0.17]
[1719249825150,30.65,128.14,128.01,0.34]
[1719249825465,58.5038,128.2,128.01,0.34]
[1719249825635,7.8038,128.15,128.01,0.34]
[1719249825836,23.39,128.14,128.01,0.34]
[1719249826064,58.5038,128.2,128.01,0.34]
[1719249826065,19.5015,128.2,128.01,0.34]
[1719249826249,30.65,128.22,128.01,0.34]
[1719249826458,30.65,128.22,128.02,19.5277]
[1719249826637,38.76812646,128.22,128.05,21.6286]
[1719249826840,7.8011,128.19,128.06,20.34]
[1719249827038,7.8004,128.2,128.06,20.34]
[1719249827268,7.801,128.19,128.06,20.34]
[1719249827441,31.191,128.19,128.06,20.34]
[1719249827757,23.39,128.21,128.06,20.34]
[1719249827970,38.76812646,128.22,128.06,20.34]
[1719249828134,7.7999,128.21,128.06,20.34]
[1719249828342,38.76812646,128.22,128.06,20.34]